{"text_format":"3","workbook":"xlsx","n_sheets":15,"sheets":["FORM","Spotters","Sheet2","NOTES","Sheet1","Sheet5","Callups","Events","Sheet4","Sheet6","Counties","Instructions","Summary","Sheet3","Sheet8"],"not_rendered":{"macros":1,"defined_names":10},"read":"whole","date_system":"1900"}

{"sheet":"FORM","index":0,"n_rows":153,"n_cols":11,"rows_kept":153,"merged":[[0,0,0,2],[0,6,0,7],[1,1,1,2],[3,6,3,9],[4,6,4,9],[6,6,6,9],[7,6,7,9],[8,6,8,9],[9,6,9,9],[10,6,10,9],[11,6,11,9],[12,6,12,9],[13,6,13,9],[14,6,14,9],[15,6,15,9],[16,6,16,9],[17,6,17,9],[18,6,18,9],[19,6,19,9],[20,6,20,9],[23,6,23,9]]}
["Emergency Log  v8.0",null,null,"Greene","Type","Summer","Total Operator Hours",null,{"$f":"I3*J3","v":0}]
["Call","Criteria",null,"Storm Warning","Date",null,"Start 24 hr Time","End 24hr Time","Total","Checkins"]
["NR","Call","Name","H/M","Avail Y/N","Location",null,null,{"$f":"INT(K3)*24+HOUR(K3)+ROUND(MINUTE(K3)/60,2)","v":{"v":0,"d":"0.00"}},{"$f":"COUNTA(B4:B153)","v":0},{"$f":"IF((H3-G3)<0,1-(G3-H3),(H3-G3))","v":0}]
[1,null,"Net Control",null,null,{"$f":"IF(D4=\"H\",(IFERROR(VLOOKUP(B4,Spotters!$A$1:$C$498,3,FALSE),\" \")),\" \")","v":" "},"Notes and Links"]
[2,null,"Assistant Net Control",null,null,{"$f":"IF(D5=\"H\",(IFERROR(VLOOKUP(B5,Spotters!$A$1:$C$498,3,FALSE),\" \")),\" \")","v":" "},"Click arrow beside Type to select. Shaded cells can not be"]
[3,null,"NWS Reporter",null,null,{"$f":"IF(D6=\"H\",(IFERROR(VLOOKUP(B6,Spotters!$A$1:$C$498,3,FALSE),\" \")),\" \")","v":" "},"edited. Notes are added on the NOTES sheet (bottom of form)"]
[4,null,{"$f":"IFERROR(VLOOKUP(B7,Spotters!$A$1:$C$498,2,FALSE),\" \")","v":" "},null,null,{"$f":"IF(D7=\"H\",(IFERROR(VLOOKUP(B7,Spotters!$A$1:$C$498,3,FALSE),\" \")),\" \")","v":" "},"National Weather Phone # 412-262-1988"]
[5,null,{"$f":"IFERROR(VLOOKUP(B8,Spotters!$A$1:$C$498,2,FALSE),\" \")","v":" "},null,null,{"$f":"IF(D8=\"H\",(IFERROR(VLOOKUP(B8,Spotters!$A$1:$C$498,3,FALSE),\" \")),\" \")","v":" "},"GRLvel 3 Radar  "]
[6,null,{"$f":"IFERROR(VLOOKUP(B9,Spotters!$A$1:$C$498,2,FALSE),\" \")","v":" "},null,null,{"$f":"IF(D9=\"H\",(IFERROR(VLOOKUP(B9,Spotters!$A$1:$C$498,3,FALSE),\" \")),\" \")","v":" "},"QRZ To Lookup New Spotters"]
[7,null,{"$f":"IFERROR(VLOOKUP(B10,Spotters!$A$1:$C$498,2,FALSE),\" \")","v":" "},null,null,{"$f":"IF(D10=\"H\",(IFERROR(VLOOKUP(B10,Spotters!$A$1:$C$498,3,FALSE),\" \")),\" \")","v":" "},"Pittsburgh Weather Radar"]
[8,null,{"$f":"IFERROR(VLOOKUP(B11,Spotters!$A$1:$C$498,2,FALSE),\" \")","v":" "},null,null,{"$f":"IF(D11=\"H\",(IFERROR(VLOOKUP(B11,Spotters!$A$1:$C$498,3,FALSE),\" \")),\" \")","v":" "},"Net Call-up"]
[9,null,{"$f":"IFERROR(VLOOKUP(B12,Spotters!$A$1:$C$498,2,FALSE),\" \")","v":" "},null,null,{"$f":"IF(D12=\"H\",(IFERROR(VLOOKUP(B12,Spotters!$A$1:$C$498,3,FALSE),\" \")),\" \")","v":" "},"Public Service Call Up"]
[10,null,{"$f":"IFERROR(VLOOKUP(B13,Spotters!$A$1:$C$498,2,FALSE),\" \")","v":" "},null,null,{"$f":"IF(D13=\"H\",(IFERROR(VLOOKUP(B13,Spotters!$A$1:$C$498,3,FALSE),\" \")),\" \")","v":" "},"Net Closing"]
[11,null,{"$f":"IFERROR(VLOOKUP(B14,Spotters!$A$1:$C$498,2,FALSE),\" \")","v":" "},null,null,{"$f":"IF(D14=\"H\",(IFERROR(VLOOKUP(B14,Spotters!$A$1:$C$498,3,FALSE),\" \")),\" \")","v":" "},"Check For New Check-ins"]
[12,null,{"$f":"IFERROR(VLOOKUP(B15,Spotters!$A$1:$C$498,2,FALSE),\" \")","v":" "},null,null,{"$f":"IF(D15=\"H\",(IFERROR(VLOOKUP(B15,Spotters!$A$1:$C$498,3,FALSE),\" \")),\" \")","v":" "},"Summer Reporting Criteria"]
[13,null,{"$f":"IFERROR(VLOOKUP(B16,Spotters!$A$1:$C$498,2,FALSE),\" \")","v":" "},null,null,{"$f":"IF(D16=\"H\",(IFERROR(VLOOKUP(B16,Spotters!$A$1:$C$498,3,FALSE),\" \")),\" \")","v":" "},"Winter Reporting Criteria"]
[14,null,{"$f":"IFERROR(VLOOKUP(B17,Spotters!$A$1:$C$498,2,FALSE),\" \")","v":" "},null,null,{"$f":"IF(D17=\"H\",(IFERROR(VLOOKUP(B17,Spotters!$A$1:$C$498,3,FALSE),\" \")),\" \")","v":" "},"Storm Report Form"]
[15,null,{"$f":"IFERROR(VLOOKUP(B18,Spotters!$A$1:$C$498,2,FALSE),\" \")","v":" "},null,null,{"$f":"IF(D18=\"H\",(IFERROR(VLOOKUP(B18,Spotters!$A$1:$C$498,3,FALSE),\" \")),\" \")","v":" "},"Slack"]
[16,null,{"$f":"IFERROR(VLOOKUP(B19,Spotters!$A$1:$C$498,2,FALSE),\" \")","v":" "},null,null,{"$f":"IF(D19=\"H\",(IFERROR(VLOOKUP(B19,Spotters!$A$1:$C$498,3,FALSE),\" \")),\" \")","v":" "}]
[17,null,{"$f":"IFERROR(VLOOKUP(B20,Spotters!$A$1:$C$498,2,FALSE),\" \")","v":" "},null,null,{"$f":"IF(D20=\"H\",(IFERROR(VLOOKUP(B20,Spotters!$A$1:$C$498,3,FALSE),\" \")),\" \")","v":" "}]
[18,null,{"$f":"IFERROR(VLOOKUP(B21,Spotters!$A$1:$C$498,2,FALSE),\" \")","v":" "},null,null,{"$f":"IF(D21=\"H\",(IFERROR(VLOOKUP(B21,Spotters!$A$1:$C$498,3,FALSE),\" \")),\" \")","v":" "}]
[19,null,{"$f":"IFERROR(VLOOKUP(B22,Spotters!$A$1:$C$498,2,FALSE),\" \")","v":" "},null,null,{"$f":"IF(D22=\"H\",(IFERROR(VLOOKUP(B22,Spotters!$A$1:$C$498,3,FALSE),\" \")),\" \")","v":" "}]
[20,null,{"$f":"IFERROR(VLOOKUP(B23,Spotters!$A$1:$C$498,2,FALSE),\" \")","v":" "},null,null,{"$f":"IF(D23=\"H\",(IFERROR(VLOOKUP(B23,Spotters!$A$1:$C$498,3,FALSE),\" \")),\" \")","v":" "}]
[21,null,{"$f":"IFERROR(VLOOKUP(B24,Spotters!$A$1:$C$498,2,FALSE),\" \")","v":" "},null,null,{"$f":"IF(D24=\"H\",(IFERROR(VLOOKUP(B24,Spotters!$A$1:$C$498,3,FALSE),\" \")),\" \")","v":" "}]
[22,null,{"$f":"IFERROR(VLOOKUP(B25,Spotters!$A$1:$C$498,2,FALSE),\" \")","v":" "},null,null,{"$f":"IF(D25=\"H\",(IFERROR(VLOOKUP(B25,Spotters!$A$1:$C$498,3,FALSE),\" \")),\" \")","v":" "}]
[23,null,{"$f":"IFERROR(VLOOKUP(B26,Spotters!$A$1:$C$498,2,FALSE),\" \")","v":" "},null,null,{"$f":"IF(D26=\"H\",(IFERROR(VLOOKUP(B26,Spotters!$A$1:$C$498,3,FALSE),\" \")),\" \")","v":" "}]
[24,null,{"$f":"IFERROR(VLOOKUP(B27,Spotters!$A$1:$C$498,2,FALSE),\" \")","v":" "},null,null,{"$f":"IF(D27=\"H\",(IFERROR(VLOOKUP(B27,Spotters!$A$1:$C$498,3,FALSE),\" \")),\" \")","v":" "}]
[25,null,{"$f":"IFERROR(VLOOKUP(B28,Spotters!$A$1:$C$498,2,FALSE),\" \")","v":" "},null,null,{"$f":"IF(D28=\"H\",(IFERROR(VLOOKUP(B28,Spotters!$A$1:$C$498,3,FALSE),\" \")),\" \")","v":" "}]
[26,null,{"$f":"IFERROR(VLOOKUP(B29,Spotters!$A$1:$C$498,2,FALSE),\" \")","v":" "},null,null,{"$f":"IF(D29=\"H\",(IFERROR(VLOOKUP(B29,Spotters!$A$1:$C$498,3,FALSE),\" \")),\" \")","v":" "}]
[27,null,{"$f":"IFERROR(VLOOKUP(B30,Spotters!$A$1:$C$498,2,FALSE),\" \")","v":" "},null,null,{"$f":"IF(D30=\"H\",(IFERROR(VLOOKUP(B30,Spotters!$A$1:$C$498,3,FALSE),\" \")),\" \")","v":" "}]
[28,null,{"$f":"IFERROR(VLOOKUP(B31,Spotters!$A$1:$C$498,2,FALSE),\" \")","v":" "},null,null,{"$f":"IF(D31=\"H\",(IFERROR(VLOOKUP(B31,Spotters!$A$1:$C$498,3,FALSE),\" \")),\" \")","v":" "}]
[29,null,{"$f":"IFERROR(VLOOKUP(B32,Spotters!$A$1:$C$498,2,FALSE),\" \")","v":" "},null,null,{"$f":"IF(D32=\"H\",(IFERROR(VLOOKUP(B32,Spotters!$A$1:$C$498,3,FALSE),\" \")),\" \")","v":" "}]
[30,null,{"$f":"IFERROR(VLOOKUP(B33,Spotters!$A$1:$C$498,2,FALSE),\" \")","v":" "},null,null,{"$f":"IF(D33=\"H\",(IFERROR(VLOOKUP(B33,Spotters!$A$1:$C$498,3,FALSE),\" \")),\" \")","v":" "}]
[31,null,{"$f":"IFERROR(VLOOKUP(B34,Spotters!$A$1:$C$498,2,FALSE),\" \")","v":" "},null,null,{"$f":"IF(D34=\"H\",(IFERROR(VLOOKUP(B34,Spotters!$A$1:$C$498,3,FALSE),\" \")),\" \")","v":" "}]
[32,null,{"$f":"IFERROR(VLOOKUP(B35,Spotters!$A$1:$C$498,2,FALSE),\" \")","v":" "},null,null,{"$f":"IF(D35=\"H\",(IFERROR(VLOOKUP(B35,Spotters!$A$1:$C$498,3,FALSE),\" \")),\" \")","v":" "}]
[33,null,{"$f":"IFERROR(VLOOKUP(B36,Spotters!$A$1:$C$498,2,FALSE),\" \")","v":" "},null,null,{"$f":"IF(D36=\"H\",(IFERROR(VLOOKUP(B36,Spotters!$A$1:$C$498,3,FALSE),\" \")),\" \")","v":" "}]
[34,null,{"$f":"IFERROR(VLOOKUP(B37,Spotters!$A$1:$C$498,2,FALSE),\" \")","v":" "},null,null,{"$f":"IF(D37=\"H\",(IFERROR(VLOOKUP(B37,Spotters!$A$1:$C$498,3,FALSE),\" \")),\" \")","v":" "}]
[35,null,{"$f":"IFERROR(VLOOKUP(B38,Spotters!$A$1:$C$498,2,FALSE),\" \")","v":" "},null,null,{"$f":"IF(D38=\"H\",(IFERROR(VLOOKUP(B38,Spotters!$A$1:$C$498,3,FALSE),\" \")),\" \")","v":" "}]
[36,null,{"$f":"IFERROR(VLOOKUP(B39,Spotters!$A$1:$C$498,2,FALSE),\" \")","v":" "},null,null,{"$f":"IF(D39=\"H\",(IFERROR(VLOOKUP(B39,Spotters!$A$1:$C$498,3,FALSE),\" \")),\" \")","v":" "}]
[37,null,{"$f":"IFERROR(VLOOKUP(B40,Spotters!$A$1:$C$498,2,FALSE),\" \")","v":" "},null,null,{"$f":"IF(D40=\"H\",(IFERROR(VLOOKUP(B40,Spotters!$A$1:$C$498,3,FALSE),\" \")),\" \")","v":" "}]
[38,null,{"$f":"IFERROR(VLOOKUP(B41,Spotters!$A$1:$C$498,2,FALSE),\" \")","v":" "},null,null,{"$f":"IF(D41=\"H\",(IFERROR(VLOOKUP(B41,Spotters!$A$1:$C$498,3,FALSE),\" \")),\" \")","v":" "}]
[39,null,{"$f":"IFERROR(VLOOKUP(B42,Spotters!$A$1:$C$498,2,FALSE),\" \")","v":" "},null,null,{"$f":"IF(D42=\"H\",(IFERROR(VLOOKUP(B42,Spotters!$A$1:$C$498,3,FALSE),\" \")),\" \")","v":" "}]
[40,null,{"$f":"IFERROR(VLOOKUP(B43,Spotters!$A$1:$C$498,2,FALSE),\" \")","v":" "},null,null,{"$f":"IF(D43=\"H\",(IFERROR(VLOOKUP(B43,Spotters!$A$1:$C$498,3,FALSE),\" \")),\" \")","v":" "}]
[{"$f":"A43+1","v":41},null,{"$f":"IFERROR(VLOOKUP(B44,Spotters!$A$1:$C$498,2,FALSE),\" \")","v":" "},null,null,{"$f":"IF(D44=\"H\",(IFERROR(VLOOKUP(B44,Spotters!$A$1:$C$498,3,FALSE),\" \")),\" \")","v":" "}]
[{"$f":"A44+1","v":42},null,{"$f":"IFERROR(VLOOKUP(B45,Spotters!$A$1:$C$498,2,FALSE),\" \")","v":" "},null,null,{"$f":"IF(D45=\"H\",(IFERROR(VLOOKUP(B45,Spotters!$A$1:$C$498,3,FALSE),\" \")),\" \")","v":" "}]
[{"$f":"A45+1","v":43},null,{"$f":"IFERROR(VLOOKUP(B46,Spotters!$A$1:$C$498,2,FALSE),\" \")","v":" "},null,null,{"$f":"IF(D46=\"H\",(IFERROR(VLOOKUP(B46,Spotters!$A$1:$C$498,3,FALSE),\" \")),\" \")","v":" "}]
[44,null,{"$f":"IFERROR(VLOOKUP(B47,Spotters!$A$1:$C$498,2,FALSE),\" \")","v":" "},null,null,{"$f":"IF(D47=\"H\",(IFERROR(VLOOKUP(B47,Spotters!$A$1:$C$498,3,FALSE),\" \")),\" \")","v":" "}]
[45,null,{"$f":"IFERROR(VLOOKUP(B48,Spotters!$A$1:$C$498,2,FALSE),\" \")","v":" "},null,null,{"$f":"IF(D48=\"H\",(IFERROR(VLOOKUP(B48,Spotters!$A$1:$C$498,3,FALSE),\" \")),\" \")","v":" "}]
[46,null,{"$f":"IFERROR(VLOOKUP(B49,Spotters!$A$1:$C$498,2,FALSE),\" \")","v":" "},null,null,{"$f":"IF(D49=\"H\",(IFERROR(VLOOKUP(B49,Spotters!$A$1:$C$498,3,FALSE),\" \")),\" \")","v":" "}]
[47,null,{"$f":"IFERROR(VLOOKUP(B50,Spotters!$A$1:$C$498,2,FALSE),\" \")","v":" "},null,null,{"$f":"IF(D50=\"H\",(IFERROR(VLOOKUP(B50,Spotters!$A$1:$C$498,3,FALSE),\" \")),\" \")","v":" "}]
[48,null,{"$f":"IFERROR(VLOOKUP(B51,Spotters!$A$1:$C$498,2,FALSE),\" \")","v":" "},null,null,{"$f":"IF(D51=\"H\",(IFERROR(VLOOKUP(B51,Spotters!$A$1:$C$498,3,FALSE),\" \")),\" \")","v":" "}]
[49,null,{"$f":"IFERROR(VLOOKUP(B52,Spotters!$A$1:$C$498,2,FALSE),\" \")","v":" "},null,null,{"$f":"IF(D52=\"H\",(IFERROR(VLOOKUP(B52,Spotters!$A$1:$C$498,3,FALSE),\" \")),\" \")","v":" "}]
[50,null,{"$f":"IFERROR(VLOOKUP(B53,Spotters!$A$1:$C$498,2,FALSE),\" \")","v":" "},null,null,{"$f":"IF(D53=\"H\",(IFERROR(VLOOKUP(B53,Spotters!$A$1:$C$498,3,FALSE),\" \")),\" \")","v":" "}]
[51,null,{"$f":"IFERROR(VLOOKUP(B54,Spotters!$A$1:$C$498,2,FALSE),\" \")","v":" "},null,null,{"$f":"IF(D54=\"H\",(IFERROR(VLOOKUP(B54,Spotters!$A$1:$C$498,3,FALSE),\" \")),\" \")","v":" "}]
[52,null,{"$f":"IFERROR(VLOOKUP(B55,Spotters!$A$1:$C$498,2,FALSE),\" \")","v":" "},null,null,{"$f":"IF(D55=\"H\",(IFERROR(VLOOKUP(B55,Spotters!$A$1:$C$498,3,FALSE),\" \")),\" \")","v":" "}]
[53,null,{"$f":"IFERROR(VLOOKUP(B56,Spotters!$A$1:$C$498,2,FALSE),\" \")","v":" "},null,null,{"$f":"IF(D56=\"H\",(IFERROR(VLOOKUP(B56,Spotters!$A$1:$C$498,3,FALSE),\" \")),\" \")","v":" "}]
[54,null,{"$f":"IFERROR(VLOOKUP(B57,Spotters!$A$1:$C$498,2,FALSE),\" \")","v":" "},null,null,{"$f":"IF(D57=\"H\",(IFERROR(VLOOKUP(B57,Spotters!$A$1:$C$498,3,FALSE),\" \")),\" \")","v":" "}]
[55,null,{"$f":"IFERROR(VLOOKUP(B58,Spotters!$A$1:$C$498,2,FALSE),\" \")","v":" "},null,null,{"$f":"IF(D58=\"H\",(IFERROR(VLOOKUP(B58,Spotters!$A$1:$C$498,3,FALSE),\" \")),\" \")","v":" "}]
[56,null,{"$f":"IFERROR(VLOOKUP(B59,Spotters!$A$1:$C$498,2,FALSE),\" \")","v":" "},null,null,{"$f":"IF(D59=\"H\",(IFERROR(VLOOKUP(B59,Spotters!$A$1:$C$498,3,FALSE),\" \")),\" \")","v":" "}]
[57,null,{"$f":"IFERROR(VLOOKUP(B60,Spotters!$A$1:$C$498,2,FALSE),\" \")","v":" "},null,null,{"$f":"IF(D60=\"H\",(IFERROR(VLOOKUP(B60,Spotters!$A$1:$C$498,3,FALSE),\" \")),\" \")","v":" "}]
[58,null,{"$f":"IFERROR(VLOOKUP(B61,Spotters!$A$1:$C$498,2,FALSE),\" \")","v":" "},null,null,{"$f":"IF(D61=\"H\",(IFERROR(VLOOKUP(B61,Spotters!$A$1:$C$498,3,FALSE),\" \")),\" \")","v":" "}]
[59,null,{"$f":"IFERROR(VLOOKUP(B62,Spotters!$A$1:$C$498,2,FALSE),\" \")","v":" "},null,null,{"$f":"IF(D62=\"H\",(IFERROR(VLOOKUP(B62,Spotters!$A$1:$C$498,3,FALSE),\" \")),\" \")","v":" "}]
[60,null,{"$f":"IFERROR(VLOOKUP(B63,Spotters!$A$1:$C$498,2,FALSE),\" \")","v":" "},null,null,{"$f":"IF(D63=\"H\",(IFERROR(VLOOKUP(B63,Spotters!$A$1:$C$498,3,FALSE),\" \")),\" \")","v":" "}]
[61,null,{"$f":"IFERROR(VLOOKUP(B64,Spotters!$A$1:$C$498,2,FALSE),\" \")","v":" "},null,null,{"$f":"IF(D64=\"H\",(IFERROR(VLOOKUP(B64,Spotters!$A$1:$C$498,3,FALSE),\" \")),\" \")","v":" "}]
[62,null,{"$f":"IFERROR(VLOOKUP(B65,Spotters!$A$1:$C$498,2,FALSE),\" \")","v":" "},null,null,{"$f":"IF(D65=\"H\",(IFERROR(VLOOKUP(B65,Spotters!$A$1:$C$498,3,FALSE),\" \")),\" \")","v":" "}]
[63,null,{"$f":"IFERROR(VLOOKUP(B66,Spotters!$A$1:$C$498,2,FALSE),\" \")","v":" "},null,null,{"$f":"IF(D66=\"H\",(IFERROR(VLOOKUP(B66,Spotters!$A$1:$C$498,3,FALSE),\" \")),\" \")","v":" "}]
[64,null,{"$f":"IFERROR(VLOOKUP(B67,Spotters!$A$1:$C$498,2,FALSE),\" \")","v":" "},null,null,{"$f":"IF(D67=\"H\",(IFERROR(VLOOKUP(B67,Spotters!$A$1:$C$498,3,FALSE),\" \")),\" \")","v":" "}]
[65,null,{"$f":"IFERROR(VLOOKUP(B68,Spotters!$A$1:$C$498,2,FALSE),\" \")","v":" "},null,null,{"$f":"IF(D68=\"H\",(IFERROR(VLOOKUP(B68,Spotters!$A$1:$C$498,3,FALSE),\" \")),\" \")","v":" "}]
[66,null,{"$f":"IFERROR(VLOOKUP(B69,Spotters!$A$1:$C$498,2,FALSE),\" \")","v":" "},null,null,{"$f":"IF(D69=\"H\",(IFERROR(VLOOKUP(B69,Spotters!$A$1:$C$498,3,FALSE),\" \")),\" \")","v":" "}]
[67,null,{"$f":"IFERROR(VLOOKUP(B70,Spotters!$A$1:$C$498,2,FALSE),\" \")","v":" "},null,null,{"$f":"IF(D70=\"H\",(IFERROR(VLOOKUP(B70,Spotters!$A$1:$C$498,3,FALSE),\" \")),\" \")","v":" "}]
[68,null,{"$f":"IFERROR(VLOOKUP(B71,Spotters!$A$1:$C$498,2,FALSE),\" \")","v":" "},null,null,{"$f":"IF(D71=\"H\",(IFERROR(VLOOKUP(B71,Spotters!$A$1:$C$498,3,FALSE),\" \")),\" \")","v":" "}]
[69,null,{"$f":"IFERROR(VLOOKUP(B72,Spotters!$A$1:$C$498,2,FALSE),\" \")","v":" "},null,null,{"$f":"IF(D72=\"H\",(IFERROR(VLOOKUP(B72,Spotters!$A$1:$C$498,3,FALSE),\" \")),\" \")","v":" "}]
[70,null,{"$f":"IFERROR(VLOOKUP(B73,Spotters!$A$1:$C$498,2,FALSE),\" \")","v":" "},null,null,{"$f":"IF(D73=\"H\",(IFERROR(VLOOKUP(B73,Spotters!$A$1:$C$498,3,FALSE),\" \")),\" \")","v":" "}]
[71,null,{"$f":"IFERROR(VLOOKUP(B74,Spotters!$A$1:$C$498,2,FALSE),\" \")","v":" "},null,null,{"$f":"IF(D74=\"H\",(IFERROR(VLOOKUP(B74,Spotters!$A$1:$C$498,3,FALSE),\" \")),\" \")","v":" "}]
[72,null,{"$f":"IFERROR(VLOOKUP(B75,Spotters!$A$1:$C$498,2,FALSE),\" \")","v":" "},null,null,{"$f":"IF(D75=\"H\",(IFERROR(VLOOKUP(B75,Spotters!$A$1:$C$498,3,FALSE),\" \")),\" \")","v":" "}]
[73,null,{"$f":"IFERROR(VLOOKUP(B76,Spotters!$A$1:$C$498,2,FALSE),\" \")","v":" "},null,null,{"$f":"IF(D76=\"H\",(IFERROR(VLOOKUP(B76,Spotters!$A$1:$C$498,3,FALSE),\" \")),\" \")","v":" "}]
[74,null,{"$f":"IFERROR(VLOOKUP(B77,Spotters!$A$1:$C$498,2,FALSE),\" \")","v":" "},null,null,{"$f":"IF(D77=\"H\",(IFERROR(VLOOKUP(B77,Spotters!$A$1:$C$498,3,FALSE),\" \")),\" \")","v":" "}]
[75,null,{"$f":"IFERROR(VLOOKUP(B78,Spotters!$A$1:$C$498,2,FALSE),\" \")","v":" "},null,null,{"$f":"IF(D78=\"H\",(IFERROR(VLOOKUP(B78,Spotters!$A$1:$C$498,3,FALSE),\" \")),\" \")","v":" "}]
[76,null,{"$f":"IFERROR(VLOOKUP(B79,Spotters!$A$1:$C$498,2,FALSE),\" \")","v":" "},null,null,{"$f":"IF(D79=\"H\",(IFERROR(VLOOKUP(B79,Spotters!$A$1:$C$498,3,FALSE),\" \")),\" \")","v":" "}]
[77,null,{"$f":"IFERROR(VLOOKUP(B80,Spotters!$A$1:$C$498,2,FALSE),\" \")","v":" "},null,null,{"$f":"IF(D80=\"H\",(IFERROR(VLOOKUP(B80,Spotters!$A$1:$C$498,3,FALSE),\" \")),\" \")","v":" "}]
[78,null,{"$f":"IFERROR(VLOOKUP(B81,Spotters!$A$1:$C$498,2,FALSE),\" \")","v":" "},null,null,{"$f":"IF(D81=\"H\",(IFERROR(VLOOKUP(B81,Spotters!$A$1:$C$498,3,FALSE),\" \")),\" \")","v":" "}]
[79,null,{"$f":"IFERROR(VLOOKUP(B82,Spotters!$A$1:$C$498,2,FALSE),\" \")","v":" "},null,null,{"$f":"IF(D82=\"H\",(IFERROR(VLOOKUP(B82,Spotters!$A$1:$C$498,3,FALSE),\" \")),\" \")","v":" "}]
[80,null,{"$f":"IFERROR(VLOOKUP(B83,Spotters!$A$1:$C$498,2,FALSE),\" \")","v":" "},null,null,{"$f":"IF(D83=\"H\",(IFERROR(VLOOKUP(B83,Spotters!$A$1:$C$498,3,FALSE),\" \")),\" \")","v":" "}]
[81,null,{"$f":"IFERROR(VLOOKUP(B84,Spotters!$A$1:$C$498,2,FALSE),\" \")","v":" "},null,null,{"$f":"IF(D84=\"H\",(IFERROR(VLOOKUP(B84,Spotters!$A$1:$C$498,3,FALSE),\" \")),\" \")","v":" "}]
[82,null,{"$f":"IFERROR(VLOOKUP(B85,Spotters!$A$1:$C$498,2,FALSE),\" \")","v":" "},null,null,{"$f":"IF(D85=\"H\",(IFERROR(VLOOKUP(B85,Spotters!$A$1:$C$498,3,FALSE),\" \")),\" \")","v":" "}]
[83,null,{"$f":"IFERROR(VLOOKUP(B86,Spotters!$A$1:$C$498,2,FALSE),\" \")","v":" "},null,null,{"$f":"IF(D86=\"H\",(IFERROR(VLOOKUP(B86,Spotters!$A$1:$C$498,3,FALSE),\" \")),\" \")","v":" "}]
[84,null,{"$f":"IFERROR(VLOOKUP(B87,Spotters!$A$1:$C$498,2,FALSE),\" \")","v":" "},null,null,{"$f":"IF(D87=\"H\",(IFERROR(VLOOKUP(B87,Spotters!$A$1:$C$498,3,FALSE),\" \")),\" \")","v":" "}]
[85,null,{"$f":"IFERROR(VLOOKUP(B88,Spotters!$A$1:$C$498,2,FALSE),\" \")","v":" "},null,null,{"$f":"IF(D88=\"H\",(IFERROR(VLOOKUP(B88,Spotters!$A$1:$C$498,3,FALSE),\" \")),\" \")","v":" "}]
[86,null,{"$f":"IFERROR(VLOOKUP(B89,Spotters!$A$1:$C$498,2,FALSE),\" \")","v":" "},null,null,{"$f":"IF(D89=\"H\",(IFERROR(VLOOKUP(B89,Spotters!$A$1:$C$498,3,FALSE),\" \")),\" \")","v":" "}]
[87,null,{"$f":"IFERROR(VLOOKUP(B90,Spotters!$A$1:$C$498,2,FALSE),\" \")","v":" "},null,null,{"$f":"IF(D90=\"H\",(IFERROR(VLOOKUP(B90,Spotters!$A$1:$C$498,3,FALSE),\" \")),\" \")","v":" "}]
[88,null,{"$f":"IFERROR(VLOOKUP(B91,Spotters!$A$1:$C$498,2,FALSE),\" \")","v":" "},null,null,{"$f":"IF(D91=\"H\",(IFERROR(VLOOKUP(B91,Spotters!$A$1:$C$498,3,FALSE),\" \")),\" \")","v":" "}]
[89,null,{"$f":"IFERROR(VLOOKUP(B92,Spotters!$A$1:$C$498,2,FALSE),\" \")","v":" "},null,null,{"$f":"IF(D92=\"H\",(IFERROR(VLOOKUP(B92,Spotters!$A$1:$C$498,3,FALSE),\" \")),\" \")","v":" "}]
[90,null,{"$f":"IFERROR(VLOOKUP(B93,Spotters!$A$1:$C$498,2,FALSE),\" \")","v":" "},null,null,{"$f":"IF(D93=\"H\",(IFERROR(VLOOKUP(B93,Spotters!$A$1:$C$498,3,FALSE),\" \")),\" \")","v":" "}]
[91,null,{"$f":"IFERROR(VLOOKUP(B94,Spotters!$A$1:$C$498,2,FALSE),\" \")","v":" "},null,null,{"$f":"IF(D94=\"H\",(IFERROR(VLOOKUP(B94,Spotters!$A$1:$C$498,3,FALSE),\" \")),\" \")","v":" "}]
[92,null,{"$f":"IFERROR(VLOOKUP(B95,Spotters!$A$1:$C$498,2,FALSE),\" \")","v":" "},null,null,{"$f":"IF(D95=\"H\",(IFERROR(VLOOKUP(B95,Spotters!$A$1:$C$498,3,FALSE),\" \")),\" \")","v":" "}]
[93,null,{"$f":"IFERROR(VLOOKUP(B96,Spotters!$A$1:$C$498,2,FALSE),\" \")","v":" "},null,null,{"$f":"IF(D96=\"H\",(IFERROR(VLOOKUP(B96,Spotters!$A$1:$C$498,3,FALSE),\" \")),\" \")","v":" "}]
[94,null,{"$f":"IFERROR(VLOOKUP(B97,Spotters!$A$1:$C$498,2,FALSE),\" \")","v":" "},null,null,{"$f":"IF(D97=\"H\",(IFERROR(VLOOKUP(B97,Spotters!$A$1:$C$498,3,FALSE),\" \")),\" \")","v":" "}]
[95,null,{"$f":"IFERROR(VLOOKUP(B98,Spotters!$A$1:$C$498,2,FALSE),\" \")","v":" "},null,null,{"$f":"IF(D98=\"H\",(IFERROR(VLOOKUP(B98,Spotters!$A$1:$C$498,3,FALSE),\" \")),\" \")","v":" "}]
[96,null,{"$f":"IFERROR(VLOOKUP(B99,Spotters!$A$1:$C$498,2,FALSE),\" \")","v":" "},null,null,{"$f":"IF(D99=\"H\",(IFERROR(VLOOKUP(B99,Spotters!$A$1:$C$498,3,FALSE),\" \")),\" \")","v":" "}]
[97,null,{"$f":"IFERROR(VLOOKUP(B100,Spotters!$A$1:$C$498,2,FALSE),\" \")","v":" "},null,null,{"$f":"IF(D100=\"H\",(IFERROR(VLOOKUP(B100,Spotters!$A$1:$C$498,3,FALSE),\" \")),\" \")","v":" "}]
[98,null,{"$f":"IFERROR(VLOOKUP(B101,Spotters!$A$1:$C$498,2,FALSE),\" \")","v":" "},null,null,{"$f":"IF(D101=\"H\",(IFERROR(VLOOKUP(B101,Spotters!$A$1:$C$498,3,FALSE),\" \")),\" \")","v":" "}]
[99,null,{"$f":"IFERROR(VLOOKUP(B102,Spotters!$A$1:$C$498,2,FALSE),\" \")","v":" "},null,null,{"$f":"IF(D102=\"H\",(IFERROR(VLOOKUP(B102,Spotters!$A$1:$C$498,3,FALSE),\" \")),\" \")","v":" "}]
[100,null,{"$f":"IFERROR(VLOOKUP(B103,Spotters!$A$1:$C$498,2,FALSE),\" \")","v":" "},null,null,{"$f":"IF(D103=\"H\",(IFERROR(VLOOKUP(B103,Spotters!$A$1:$C$498,3,FALSE),\" \")),\" \")","v":" "}]
[101,null,{"$f":"IFERROR(VLOOKUP(B104,Spotters!$A$1:$C$498,2,FALSE),\" \")","v":" "},null,null,{"$f":"IF(D104=\"H\",(IFERROR(VLOOKUP(B104,Spotters!$A$1:$C$498,3,FALSE),\" \")),\" \")","v":" "}]
[102,null,{"$f":"IFERROR(VLOOKUP(B105,Spotters!$A$1:$C$498,2,FALSE),\" \")","v":" "},null,null,{"$f":"IF(D105=\"H\",(IFERROR(VLOOKUP(B105,Spotters!$A$1:$C$498,3,FALSE),\" \")),\" \")","v":" "}]
[103,null,{"$f":"IFERROR(VLOOKUP(B106,Spotters!$A$1:$C$498,2,FALSE),\" \")","v":" "},null,null,{"$f":"IF(D106=\"H\",(IFERROR(VLOOKUP(B106,Spotters!$A$1:$C$498,3,FALSE),\" \")),\" \")","v":" "}]
[104,null,{"$f":"IFERROR(VLOOKUP(B107,Spotters!$A$1:$C$498,2,FALSE),\" \")","v":" "},null,null,{"$f":"IF(D107=\"H\",(IFERROR(VLOOKUP(B107,Spotters!$A$1:$C$498,3,FALSE),\" \")),\" \")","v":" "}]
[105,null,{"$f":"IFERROR(VLOOKUP(B108,Spotters!$A$1:$C$498,2,FALSE),\" \")","v":" "},null,null,{"$f":"IF(D108=\"H\",(IFERROR(VLOOKUP(B108,Spotters!$A$1:$C$498,3,FALSE),\" \")),\" \")","v":" "}]
[106,null,{"$f":"IFERROR(VLOOKUP(B109,Spotters!$A$1:$C$498,2,FALSE),\" \")","v":" "},null,null,{"$f":"IF(D109=\"H\",(IFERROR(VLOOKUP(B109,Spotters!$A$1:$C$498,3,FALSE),\" \")),\" \")","v":" "}]
[{"$f":"A109+1","v":107},null,{"$f":"IFERROR(VLOOKUP(B110,Spotters!$A$1:$C$498,2,FALSE),\" \")","v":" "},null,null,{"$f":"IF(D110=\"H\",(IFERROR(VLOOKUP(B110,Spotters!$A$1:$C$498,3,FALSE),\" \")),\" \")","v":" "}]
[108,null,{"$f":"IFERROR(VLOOKUP(B111,Spotters!$A$1:$C$498,2,FALSE),\" \")","v":" "},null,null,{"$f":"IF(D111=\"H\",(IFERROR(VLOOKUP(B111,Spotters!$A$1:$C$498,3,FALSE),\" \")),\" \")","v":" "}]
[109,null,{"$f":"IFERROR(VLOOKUP(B112,Spotters!$A$1:$C$498,2,FALSE),\" \")","v":" "},null,null,{"$f":"IF(D112=\"H\",(IFERROR(VLOOKUP(B112,Spotters!$A$1:$C$498,3,FALSE),\" \")),\" \")","v":" "}]
[110,null,{"$f":"IFERROR(VLOOKUP(B113,Spotters!$A$1:$C$498,2,FALSE),\" \")","v":" "},null,null,{"$f":"IF(D113=\"H\",(IFERROR(VLOOKUP(B113,Spotters!$A$1:$C$498,3,FALSE),\" \")),\" \")","v":" "}]
[111,null,{"$f":"IFERROR(VLOOKUP(B114,Spotters!$A$1:$C$498,2,FALSE),\" \")","v":" "},null,null,{"$f":"IF(D114=\"H\",(IFERROR(VLOOKUP(B114,Spotters!$A$1:$C$498,3,FALSE),\" \")),\" \")","v":" "}]
[112,null,{"$f":"IFERROR(VLOOKUP(B115,Spotters!$A$1:$C$498,2,FALSE),\" \")","v":" "},null,null,{"$f":"IF(D115=\"H\",(IFERROR(VLOOKUP(B115,Spotters!$A$1:$C$498,3,FALSE),\" \")),\" \")","v":" "}]
[113,null,{"$f":"IFERROR(VLOOKUP(B116,Spotters!$A$1:$C$498,2,FALSE),\" \")","v":" "},null,null,{"$f":"IF(D116=\"H\",(IFERROR(VLOOKUP(B116,Spotters!$A$1:$C$498,3,FALSE),\" \")),\" \")","v":" "}]
[114,null,{"$f":"IFERROR(VLOOKUP(B117,Spotters!$A$1:$C$498,2,FALSE),\" \")","v":" "},null,null,{"$f":"IF(D117=\"H\",(IFERROR(VLOOKUP(B117,Spotters!$A$1:$C$498,3,FALSE),\" \")),\" \")","v":" "}]
[115,null,{"$f":"IFERROR(VLOOKUP(B118,Spotters!$A$1:$C$498,2,FALSE),\" \")","v":" "},null,null,{"$f":"IF(D118=\"H\",(IFERROR(VLOOKUP(B118,Spotters!$A$1:$C$498,3,FALSE),\" \")),\" \")","v":" "}]
[116,null,{"$f":"IFERROR(VLOOKUP(B119,Spotters!$A$1:$C$498,2,FALSE),\" \")","v":" "},null,null,{"$f":"IF(D119=\"H\",(IFERROR(VLOOKUP(B119,Spotters!$A$1:$C$498,3,FALSE),\" \")),\" \")","v":" "}]
[117,null,{"$f":"IFERROR(VLOOKUP(B120,Spotters!$A$1:$C$498,2,FALSE),\" \")","v":" "},null,null,{"$f":"IF(D120=\"H\",(IFERROR(VLOOKUP(B120,Spotters!$A$1:$C$498,3,FALSE),\" \")),\" \")","v":" "}]
[118,null,{"$f":"IFERROR(VLOOKUP(B121,Spotters!$A$1:$C$498,2,FALSE),\" \")","v":" "},null,null,{"$f":"IF(D121=\"H\",(IFERROR(VLOOKUP(B121,Spotters!$A$1:$C$498,3,FALSE),\" \")),\" \")","v":" "}]
[119,null,{"$f":"IFERROR(VLOOKUP(B122,Spotters!$A$1:$C$498,2,FALSE),\" \")","v":" "},null,null,{"$f":"IF(D122=\"H\",(IFERROR(VLOOKUP(B122,Spotters!$A$1:$C$498,3,FALSE),\" \")),\" \")","v":" "}]
[120,null,{"$f":"IFERROR(VLOOKUP(B123,Spotters!$A$1:$C$498,2,FALSE),\" \")","v":" "},null,null,{"$f":"IF(D123=\"H\",(IFERROR(VLOOKUP(B123,Spotters!$A$1:$C$498,3,FALSE),\" \")),\" \")","v":" "}]
[121,null,{"$f":"IFERROR(VLOOKUP(B124,Spotters!$A$1:$C$498,2,FALSE),\" \")","v":" "},null,null,{"$f":"IF(D124=\"H\",(IFERROR(VLOOKUP(B124,Spotters!$A$1:$C$498,3,FALSE),\" \")),\" \")","v":" "}]
[122,null,{"$f":"IFERROR(VLOOKUP(B125,Spotters!$A$1:$C$498,2,FALSE),\" \")","v":" "},null,null,{"$f":"IF(D125=\"H\",(IFERROR(VLOOKUP(B125,Spotters!$A$1:$C$498,3,FALSE),\" \")),\" \")","v":" "}]
[123,null,{"$f":"IFERROR(VLOOKUP(B126,Spotters!$A$1:$C$498,2,FALSE),\" \")","v":" "},null,null,{"$f":"IF(D126=\"H\",(IFERROR(VLOOKUP(B126,Spotters!$A$1:$C$498,3,FALSE),\" \")),\" \")","v":" "}]
[124,null,{"$f":"IFERROR(VLOOKUP(B127,Spotters!$A$1:$C$498,2,FALSE),\" \")","v":" "},null,null,{"$f":"IF(D127=\"H\",(IFERROR(VLOOKUP(B127,Spotters!$A$1:$C$498,3,FALSE),\" \")),\" \")","v":" "}]
[125,null,{"$f":"IFERROR(VLOOKUP(B128,Spotters!$A$1:$C$498,2,FALSE),\" \")","v":" "},null,null,{"$f":"IF(D128=\"H\",(IFERROR(VLOOKUP(B128,Spotters!$A$1:$C$498,3,FALSE),\" \")),\" \")","v":" "}]
[126,null,{"$f":"IFERROR(VLOOKUP(B129,Spotters!$A$1:$C$498,2,FALSE),\" \")","v":" "},null,null,{"$f":"IF(D129=\"H\",(IFERROR(VLOOKUP(B129,Spotters!$A$1:$C$498,3,FALSE),\" \")),\" \")","v":" "}]
[127,null,{"$f":"IFERROR(VLOOKUP(B130,Spotters!$A$1:$C$498,2,FALSE),\" \")","v":" "},null,null,{"$f":"IF(D130=\"H\",(IFERROR(VLOOKUP(B130,Spotters!$A$1:$C$498,3,FALSE),\" \")),\" \")","v":" "}]
[128,null,{"$f":"IFERROR(VLOOKUP(B131,Spotters!$A$1:$C$498,2,FALSE),\" \")","v":" "},null,null,{"$f":"IF(D131=\"H\",(IFERROR(VLOOKUP(B131,Spotters!$A$1:$C$498,3,FALSE),\" \")),\" \")","v":" "}]
[129,null,{"$f":"IFERROR(VLOOKUP(B132,Spotters!$A$1:$C$498,2,FALSE),\" \")","v":" "},null,null,{"$f":"IF(D132=\"H\",(IFERROR(VLOOKUP(B132,Spotters!$A$1:$C$498,3,FALSE),\" \")),\" \")","v":" "}]
[130,null,{"$f":"IFERROR(VLOOKUP(B133,Spotters!$A$1:$C$498,2,FALSE),\" \")","v":" "},null,null,{"$f":"IF(D133=\"H\",(IFERROR(VLOOKUP(B133,Spotters!$A$1:$C$498,3,FALSE),\" \")),\" \")","v":" "}]
[131,null,{"$f":"IFERROR(VLOOKUP(B134,Spotters!$A$1:$C$498,2,FALSE),\" \")","v":" "},null,null,{"$f":"IF(D134=\"H\",(IFERROR(VLOOKUP(B134,Spotters!$A$1:$C$498,3,FALSE),\" \")),\" \")","v":" "}]
[132,null,{"$f":"IFERROR(VLOOKUP(B135,Spotters!$A$1:$C$498,2,FALSE),\" \")","v":" "},null,null,{"$f":"IF(D135=\"H\",(IFERROR(VLOOKUP(B135,Spotters!$A$1:$C$498,3,FALSE),\" \")),\" \")","v":" "}]
[133,null,{"$f":"IFERROR(VLOOKUP(B136,Spotters!$A$1:$C$498,2,FALSE),\" \")","v":" "},null,null,{"$f":"IF(D136=\"H\",(IFERROR(VLOOKUP(B136,Spotters!$A$1:$C$498,3,FALSE),\" \")),\" \")","v":" "}]
[134,null,{"$f":"IFERROR(VLOOKUP(B137,Spotters!$A$1:$C$498,2,FALSE),\" \")","v":" "},null,null,{"$f":"IF(D137=\"H\",(IFERROR(VLOOKUP(B137,Spotters!$A$1:$C$498,3,FALSE),\" \")),\" \")","v":" "}]
[135,null,{"$f":"IFERROR(VLOOKUP(B138,Spotters!$A$1:$C$498,2,FALSE),\" \")","v":" "},null,null,{"$f":"IF(D138=\"H\",(IFERROR(VLOOKUP(B138,Spotters!$A$1:$C$498,3,FALSE),\" \")),\" \")","v":" "}]
[136,null,{"$f":"IFERROR(VLOOKUP(B139,Spotters!$A$1:$C$498,2,FALSE),\" \")","v":" "},null,null,{"$f":"IF(D139=\"H\",(IFERROR(VLOOKUP(B139,Spotters!$A$1:$C$498,3,FALSE),\" \")),\" \")","v":" "}]
[{"$f":"A139+1","v":137},null,{"$f":"IFERROR(VLOOKUP(B140,Spotters!$A$1:$C$498,2,FALSE),\" \")","v":" "},null,null,{"$f":"IF(D140=\"H\",(IFERROR(VLOOKUP(B140,Spotters!$A$1:$C$498,3,FALSE),\" \")),\" \")","v":" "}]
[138,null,{"$f":"IFERROR(VLOOKUP(B141,Spotters!$A$1:$C$498,2,FALSE),\" \")","v":" "},null,null,{"$f":"IF(D141=\"H\",(IFERROR(VLOOKUP(B141,Spotters!$A$1:$C$498,3,FALSE),\" \")),\" \")","v":" "}]
[139,null,{"$f":"IFERROR(VLOOKUP(B142,Spotters!$A$1:$C$498,2,FALSE),\" \")","v":" "},null,null,{"$f":"IF(D142=\"H\",(IFERROR(VLOOKUP(B142,Spotters!$A$1:$C$498,3,FALSE),\" \")),\" \")","v":" "}]
[140,null,{"$f":"IFERROR(VLOOKUP(B143,Spotters!$A$1:$C$498,2,FALSE),\" \")","v":" "},null,null,{"$f":"IF(D143=\"H\",(IFERROR(VLOOKUP(B143,Spotters!$A$1:$C$498,3,FALSE),\" \")),\" \")","v":" "}]
[141,null,{"$f":"IFERROR(VLOOKUP(B144,Spotters!$A$1:$C$498,2,FALSE),\" \")","v":" "},null,null,{"$f":"IF(D144=\"H\",(IFERROR(VLOOKUP(B144,Spotters!$A$1:$C$498,3,FALSE),\" \")),\" \")","v":" "}]
[142,null,{"$f":"IFERROR(VLOOKUP(B145,Spotters!$A$1:$C$498,2,FALSE),\" \")","v":" "},null,null,{"$f":"IF(D145=\"H\",(IFERROR(VLOOKUP(B145,Spotters!$A$1:$C$498,3,FALSE),\" \")),\" \")","v":" "}]
[143,null,{"$f":"IFERROR(VLOOKUP(B146,Spotters!$A$1:$C$498,2,FALSE),\" \")","v":" "},null,null,{"$f":"IF(D146=\"H\",(IFERROR(VLOOKUP(B146,Spotters!$A$1:$C$498,3,FALSE),\" \")),\" \")","v":" "}]
[144,null,{"$f":"IFERROR(VLOOKUP(B147,Spotters!$A$1:$C$498,2,FALSE),\" \")","v":" "},null,null,{"$f":"IF(D147=\"H\",(IFERROR(VLOOKUP(B147,Spotters!$A$1:$C$498,3,FALSE),\" \")),\" \")","v":" "}]
[145,null,{"$f":"IFERROR(VLOOKUP(B148,Spotters!$A$1:$C$498,2,FALSE),\" \")","v":" "},null,null,{"$f":"IF(D148=\"H\",(IFERROR(VLOOKUP(B148,Spotters!$A$1:$C$498,3,FALSE),\" \")),\" \")","v":" "}]
[146,null,{"$f":"IFERROR(VLOOKUP(B149,Spotters!$A$1:$C$498,2,FALSE),\" \")","v":" "},null,null,{"$f":"IF(D149=\"H\",(IFERROR(VLOOKUP(B149,Spotters!$A$1:$C$498,3,FALSE),\" \")),\" \")","v":" "}]
[147,null,{"$f":"IFERROR(VLOOKUP(B150,Spotters!$A$1:$C$498,2,FALSE),\" \")","v":" "},null,null,{"$f":"IF(D150=\"H\",(IFERROR(VLOOKUP(B150,Spotters!$A$1:$C$498,3,FALSE),\" \")),\" \")","v":" "}]
[148,null,{"$f":"IFERROR(VLOOKUP(B151,Spotters!$A$1:$C$498,2,FALSE),\" \")","v":" "},null,null,{"$f":"IF(D151=\"H\",(IFERROR(VLOOKUP(B151,Spotters!$A$1:$C$498,3,FALSE),\" \")),\" \")","v":" "}]
[149,null,{"$f":"IFERROR(VLOOKUP(B152,Spotters!$A$1:$C$498,2,FALSE),\" \")","v":" "},null,null,{"$f":"IF(D152=\"H\",(IFERROR(VLOOKUP(B152,Spotters!$A$1:$C$498,3,FALSE),\" \")),\" \")","v":" "}]
[150,null,{"$f":"IFERROR(VLOOKUP(B153,Spotters!$A$1:$C$498,2,FALSE),\" \")","v":" "},null,null,{"$f":"IF(D153=\"H\",(IFERROR(VLOOKUP(B153,Spotters!$A$1:$C$498,3,FALSE),\" \")),\" \")","v":" "}]

{"sheet":"Spotters","index":1,"n_rows":256,"n_cols":3,"rows_kept":256}
["AA3KC","STEPHEN","DILLINER "]
["AB1A","MIKE","SOUTH STRABANE"]
["AB3KE","JASON","BOBTOWN "]
["K3AJC","ANTHONY","MCDONALD"]
["K3CRJ","CHRIS","SLIPPERY Rock"]
["K3KFO","DAVID","FINLEYVILLE"]
["K3OXG","LOUIS","WAYNESBURG "]
["K3PSP","DENNIS","WASHINGTON"]
["K3SAT","PAUL","DAWSONVILLE "]
["K3SEM","STEPHEN","HICKORY"]
["K6RBV","MICHAEL","\"WINTERSVILLE"]
["K8TBS","ALLEN","\"CANTON"]
["K8YBS","ALLEN","\"ST CLAIRSVILLE"]
["KA3CDW","JAMES","GRAYSVILLE"]
["KA3ETC","MICHAEL","GREENSBORO"]
["KA3FFF","CLIFFORD","MOUNT MORRIS "]
["KA3KSP","JIM","CARNEGI"]
["KA3OKW","LILLIAN","WIND RIDGE"]
["KA3OKX","SHAWN","WIND RIDGE"]
["KA3OKY","SHANE","WIND RIDGE"]
["KA3OLA","MIKE","CARMICHAELS"]
["KA3OLF","TERRY","WIND RIDGE "]
["KA3PMW","DAVID","MATHER"]
["KA3SQE","SUSAN","SPRAGGS "]
["KB3CDN","FRANCIS","ROGERSVILLE"]
["KB3COQ","GEORGETTA","GREENSBORO "]
["KB3COR","JERRY","WAYNESBURG "]
["KB3CUP","ELZA","GREENSBORO "]
["KB3CYX","SFRANK","CLARKSVILLE"]
["KB3DFV","RALPH","WAYNESBURG "]
["KB3DHZ","JOSEPH","MOUNT MORRIS"]
["KB3DUV","ROGER","HOLBROOK"]
["KB3EGC","RICHARD","CARMICHEALS"]
["KB3IN","BOB","WASHINGTON"]
["KB3IVK","STEPHEN","WAYNESBURG"]
["KB3KFT","JOHN","WAYNESBURG"]
["KB3LIX","BILL","WASHINGTON"]
["KB3LYB","MARK","PITTSBURGH"]
["KB3MHG","DAVID","RICES LANDING"]
["KB3OMR","ERIC","WAYNESBURG"]
["KB3OXH","BILL","NEW MANCHESTER WV"]
["KB3PAT","MICHAEL","BOILING SPRINGS"]
["KB3RDN","TIM","CHARMICHAELS"]
["KB3REN","TIMOTHY","CARMICHAELS"]
["KB3SLN","JAMES","GREENSBORO "]
["KB3TFN","PATRICK","SOUTH STRABANE"]
["KB3WBX","JEFFREY","HOLBROOK"]
["KB3WBY","JOSEPH","WAYNESBURG"]
["KB3YRU","EDDIE","BELLE VERNON"]
["KB3ZUS","ROBERT","CANONSBURG"]
["KC3AAZ","BILL","PROSPERITY"]
["KC3ABB","RYAN","WASHINGTON"]
["KC3ABC","RONALD","BENTLEYVILLE"]
["KC3ABD","MIKE","MONONGAHELA"]
["KC3ABE","JONATHAN","FINLEYVILLE"]
["KC3AFS","DALE","LEWISBURG"]
["KC3AJM","ROBERT","CLAYSVILLE"]
["KC3AJN","WOODY","CONWAY"]
["KC3ANX","TIMOTHY","FINLEYVILLE"]
["KC3APY","DANIEL","EIGHTY FOUR"]
["KC3BFG","JAMES","ROCHESTER"]
["KC3BHN","JAMES","DICKERSON RUN"]
["KC3BNI","STEVEN","CLARKSVILLE"]
["KC3CFU","EDWARD","FREDERICKTOWN"]
["KC3CJU","CHRIS","NEW PORT RICHEY"]
["KC3DAF","ROBERT","WASHINGTON"]
["KC3DET","ERIC","WIND RIDGE"]
["KC3DEU","PAUL","WASHINGTON"]
["KC3DQY","LARRY","RICES LANDING"]
["KC3DUO","HARLAND","WEST ALEXANDER"]
["KC3EDQ","BRAD","CLINTON"]
["KC3EKZ","RANDY","HOUSTON"]
["KC3ERD","BILL","LATROBE"]
["KC3EXD","GARY","AVELLA"]
["KC3FIQ","LOUIS","CLINTON"]
["KC3FOB","ROBERT","MATHER"]
["KC3FSU","PATRICK","HOUSTON"]
["KC3GFB","JAMES","ROCHESTER"]
["KC3GJU","GREG","MONESSEN"]
["KC3HAX","DAVID","DILLINER"]
["KC3HBI","JAMES L.","BENTLEYVILLE"]
["KC3HBJ","BRADLEY","WAYNESBURG"]
["KC3HBK","RICH","WASHINGTON"]
["KC3HBM","MISTY","WASHINGTON"]
["KC3HBN","JOHN","WASHINGFTON"]
["KC3HBO","KAY","WASHINGTON"]
["KC3HBQ","JONATHAN","DARRAGH"]
["KC3HBR","DAVID","MOON TWP"]
["KC3HBS","CHRISTOPHER","WASHINGTON"]
["KC3HCZ","BRANDON","WEST ALEXANDER"]
["KC3HNU","PAUL","CANONSBURG"]
["KC3HPN","JOHN","WASHINGTON"]
["KC3HW","JAMES","WASHINGTON"]
["KC3IDT","MIKE","SOUTH STRABANE"]
["KC3IDU","NICK","BENTLEYVILLE"]
["KC3IRD","MARTCH","BENTLEYVILLE"]
["KC3IYE","CHRIS","RUFF CREEK"]
["KC3IYE","CHRISTOPHER","WAYNESBURG"]
["KC3IYT","KCRIS","\"HOCKESSIN"]
["KC3IZQ","BRANT","SOUTH STRABANE"]
["KC3JEB","ROBERT","BENTLEYVILLE"]
["KC3JEC","SAM","BENTLEYVILLE"]
["KC3JEY","TODD","CARMICHAELS"]
["KC3JJY","FALSE REPORTS","CRIES WOLF"]
["KC3JOE","JOHN","WAYNESBURG"]
["KC3JSE","MICHAEL","VENETIA"]
["KC3JZF","DIANA","DILLINER"]
["KC3LJA","SUE","CLINTON"]
["KC3LJC","ROY","WAYNESBURG"]
["KC3LJE","CHARLES","WASHINGTON"]
["KC3LQH","PATRICK","\"EASTON"]
["KC3MKM","MARTI","WASHINGTON"]
["KC3NSH","JORDAN","PITTSBURGH"]
["KC3NUT","DAVID","BROWNSVILLE"]
["KC3OQH","RICHARD","CLARKSVILLE"]
["KC3PDR","PETER","WAYNESBURG"]
["KC3PGH","ANTHONY","HOUSTON"]
["KC3POT","BLAIR","SOUTH STRABANE"]
["KC3POU","STEPHEN","HICKORY"]
["KC3PXC","Paul","ELLWOOD CITY"]
["KC3RC","RICKY","WAYNESBURG"]
["KC3RN","KEVIN","PITTSBURGH"]
["KC3RNA","TAMMY","WASHINGTON"]
["KC3RTF","ROBERT","EIGHTY FOUR"]
["KC3SAT","BENJAMIN BO","WASHINGTON"]
["KC3SPY","LARRY","CANONSBURG"]
["KC3TBI","GEORGE","CANNONSBURG"]
["KC3TOM","TOM","BURGETTSTOWN"]
["KC3TYF","CHRIS","ABINGTON"]
["KC8IEH","JOHN","\"BETHESDA"]
["KC8YJJ","Gary","TORONTO OH"]
["KD0TKE","TINA","CUSTER"]
["KD2OIE","DUSAN","LONG ISLAND NY"]
["KD3RZ","DAVID","CUSTER"]
["KD4DNM","ROBERT","CLARKSVILLE"]
["KD8KAC","DEBBIE","MOUNDSVILLE"]
["KD8OXN","DAVID","\"WINTERSVILLE"]
["KE4KEF","NELSON","HOLBROOK"]
["KE8GBX","ALEX","WINTERSVILLE"]
["KE8GNW","ALEX","COLIERRS"]
["KE8IDH","KEVIN","MENTOR"]
["KE8PIU","JON","\"SOUTH SOLON"]
["KF5INT","MIKEL","FLINT MI"]
["KI4DHB","ROBERT","MCKEES ROCKS"]
["KK4YL","SALLY","CLAYSVILLE"]
["KN3J","RICHARD","NEMACOLIN"]
["KN4AA","KEVIN","CLAYSVILLE"]
["KX2A","JAN","MOUNT MORRIS "]
["N2CJW","GUY","DILLINER"]
["N3AAA","ARTHUR","WASHINGTON"]
["N3BJY","MELVIN","EVANS CITY"]
["N3BKW","WALTER","HOUSTON"]
["N3BNB","MELODI","BOBTOWN"]
["N3BSS","BARBARA","WAYNESBURG"]
["N3BXG","JAMES JR ","WAYNESBURG"]
["N3DC","WILLIAM","CHEVERLY"]
["N3ERM","JANIE","EIGHTY FOUR"]
["N3FFS","CARL","BETHEL PARK"]
["N3GHR","JOHN","CANONSBURG"]
["N3HOW","DONALD","EIGHTY FOUR"]
["N3HOZ","MARJIE","EIGHTY FOUR"]
["N3IDH","DAVE","WASHINGTON"]
["N3IQS","MARK","BROWNSVILLE"]
["N3JPP","JOHN","NORTH HUNDTINGTON"]
["N3JSB","JOE","SCENERY HILL"]
["N3KFP","BETTE","MATHER"]
["N3LIF","ROY","WAYNESBURG"]
["N3LMJ","EDWARD","WAYNESBURG"]
["N3LMK","DAVID","MATHER "]
["N3MPA","BRYAN","WASHINGTON"]
["N3NPV","TINA M.","WASHINGTON"]
["N3OVV","WILLIAM","GREENSBORO"]
["N3PBR","DENNIS","MCMURRAY"]
["N3PN","NELSON","WASHINGTON"]
["N3PSP","TIM","IMPERIAL"]
["N3PSQ","SAMUEL","COAL CENTER"]
["N3PSR","DAVID","MATHER"]
["N3PSS","JEREMY","WAYNESBURG"]
["N3QCI","BARNEY","FINLEYVILLE"]
["N3RHT","DON","PITTSBURGH"]
["N3SDR","ROBERT","MILTON"]
["N3SDS","GORDON","WAYNESBURG"]
["N3TDW","WILLARD","LANGELOTH"]
["N3TIQ","MICHAEL","WASHINGTON"]
["N3TIR","BUD","WEST ALEXANDER"]
["N3TRD","ROBERT","EIGHTY FOUR"]
["N3UPY","SEAN","WILLIAMSPORT"]
["N3UVL","KEVIN","HOUSTON"]
["N3VNJ","DAVID","GREENSBORO"]
["N3WKZ","ROBERT","JEFFERSON"]
["N3WS","TOM","BURGETTSTOWN"]
["N3XAR","PATTY","WASHINGTON"]
["N3XE","JOSEPH","WEST ALEXANDER"]
["N3XEW","STUART","GREENSBORO"]
["N3XHM","WILLIAM","CANONSBURG"]
["N3XNZ","CYNTHIA","NEMACOLIN"]
["N3XSJ","KATHY","WAYNESBURG"]
["N3YHW","TERRY","PROPERITY"]
["N3YJJ","NORMA","WEST ALEXANDER"]
["N3YVC","MICHAEL","RICES LANDING"]
["N3YWQ","ANDREW","GREENSBORO"]
["N3ZK","RANDY","IMPERIAL"]
["N3ZNI","ED","BRIDGEVILLE"]
["N4TLL","TIM","\"JENKINS"]
["N9OKM","CHARLES","MONONGAHELA"]
["N9SOJ","MELANIE","PROSPERITY"]
["NU3Q","BOB","COLLIER TWP"]
["NU3QA","ROBERT","CARNEGI"]
["NW3X","JIM","MCMURRAY"]
["NX3P","STAN","\"HARVEST"]
["NY9H","WILLIAM","PROSPERITY"]
["NZ3S","ADAM","CANONSBURG"]
["W2UZ","RICHARD","CANONSBURG"]
["W3CYO","SAM","WASHINGTON"]
["W3KMP","KENNETH","CLARKSVILLE"]
["W3KWK","KEVIN","WAYNESBURG"]
["W3PLP","PAUL ","WASHINGTON"]
["W3TD","DAVID","WASHINGTON"]
["W3TJG","TIM","WASHINGTON"]
["W3WH","WILLIAM","HOUSTON"]
["W8GPZ","GEORGE","\"RACINE"]
["W8OHW","OKEY","MT MORRIS"]
["W9YYH","KENNETH","PITTSBURGH"]
["WA3BKD","ART","HICKORY"]
["WA3DIP","SAM","EIGHTY FOUR"]
["WA3FOI","LOIS","WASHINGTON"]
["WA3FOJ","HARRY","WASHINGTON"]
["WA3FXN","KATHLEEN","AVELLA"]
["WA3MUU","PAUL","CARMICHAELS"]
["WA3VKC","JOHN","WASHINGTON"]
["WA3WMB","JOSEPH  ","CHARLEROI"]
["WA3WZR","LOREN","MONONGAHELA"]
["WA3YCU","ROBERT","CONNEAUT LAKE"]
["WA8JAN","JAN","WASHINGTON"]
["WB3BVZ","THOMAS ","CARMICHAELS"]
["WB3BWA","CHARMAINE","CARMICHAELS"]
["WB3FYO","PAUL","MOUNT MORRIS"]
["WB3GBR","HAROLD","SPRAGGS"]
["WB3GSG","SJOSEPH","CARMICHAELS"]
["WB3GUK","FRANCIS","GREENSBORO"]
["WB3JOB","KEN","BRIDGEVILLE"]
["WB3KJQ","THOMAS","WAYNESBURG"]
["WB3LEQ","ROBERT","CARMICHAELS"]
["WB3TC","THOMAS","MONONGAHELA"]
["WB8CTC","JOE","\"Colliers"]
["WB8JHD","JARRID","\"BELLAIRE"]
["WD8W","WILEY","BENWOOD"]
["WK4I","EDDIE","RALEIGH"]
["WO3V","JOSEPH","CARMICHAELS"]
["WV3TC","TOM","MONONGAHELA"]
["WV8DC","DAVE","WASHINGTON"]
["WV8WVF","FRED","TORONTO OH"]
["WX3PIT","NWS","PITTSBURGH"]
["KC3VHD","NATE","WASHINGTON"]
["N3NAM","MICHAEL","EIGHTY FOUR"]
["KC3VHN","ROGER","COATSVILLE"]

{"sheet":"Sheet2","index":2,"n_rows":15,"n_cols":5,"rows_kept":15,"hidden":true}
["Alert","FLOOD WARNING","BLIZZARD ADVISORY","Amber","COUNTY"]
["Drill","FLOOD WATCH","BLOWING SNOW","Civil Danger","FEMA"]
["PubSvc","FOG Advisory","FOG Advisory","Civil Emergency","PEMA"]
["Summer","HEAT Advisory","FREEZING RAIN","Evac Immediate","SET"]
["Winter","Special Advisory","Hazz.  Wx Outlook","Hazardous"]
[null,"Stand By","HIGH WIND WARNING","Law Enforcement"]
[null,"Storm Warning","ICE Advisory","Local Emergency"]
[null,"Storm Watch","SNOW ADVISORY","Nuclear Power"]
[null,"Tornado Warning","Stand By","Phone Outage"]
[null,"TORNADO WATCH","WIND ADVISORY","Radiological Hazard"]
[null,"WIND Advisory","WIND CHILL ADVISORY"]
[null,null,"WIND CHILL WARNING"]
[null,null,"WINTER STORM WATCH"]
[null,null,"WINTER WARNING"]
[null,null,"WINTER WX ADVISORY"]

{"sheet":"NOTES","index":3,"n_rows":0,"n_cols":0,"rows_kept":0,"merged":[[0,0,0,21],[1,0,1,21],[2,0,2,21],[3,0,3,21],[4,0,4,21],[5,0,5,21],[6,0,6,21],[7,0,7,21],[8,0,8,21],[9,0,9,21],[10,0,10,21],[11,0,11,21],[12,0,12,21],[13,0,13,21],[14,0,14,21],[15,0,15,21],[16,0,16,21],[17,0,17,21],[18,0,18,21],[19,0,19,21],[20,0,20,21],[21,0,21,21],[22,0,22,21],[23,0,23,21],[24,0,24,21],[25,0,25,21],[26,0,26,21],[27,0,27,21],[28,0,28,21],[29,0,29,21],[30,0,30,21],[31,0,31,21],[32,0,32,21],[33,0,33,21],[34,0,34,21],[35,0,35,21],[36,0,36,21],[37,0,37,21],[38,0,38,21],[39,0,39,21],[40,0,40,21],[41,0,41,21],[42,0,42,21],[43,0,43,21],[44,0,44,21],[45,0,45,21],[46,0,46,21],[47,0,47,21],[48,0,48,21],[49,0,49,21],[50,0,50,21]]}

{"sheet":"Sheet1","index":4,"n_rows":0,"n_cols":0,"rows_kept":0,"hidden":true}

{"sheet":"Sheet5","index":5,"n_rows":40,"n_cols":1,"rows_kept":40,"hidden":true}
["Tornados, Funnel clouds, or rotating wall clouds. Hail any size (give compared to US coins) Wind gust in excess of 50 mph and means of measurement. Flooding of streams, creeks or rivers out of their banks. Roads or streets made impassable due to water. Rain 1 inch or more an hour measured in rain gauge, Any damage by wind or lightning. Downed trees or power lines. Do NOT give fair weather reports. Please give Time of occurrence, Event (Hail, Tornado, Funnel Cloud, etc.)  Location, county and direction/distance from nearest town"]
[]
[]
["Back"]
[]
[]
[]
[]
["Winter criteria for Skywarn net reporting"]
[]
["Snow accumulation in inches (When (new) snow accumulation reaches 2 inches Then at 4 inches, 6, 9, 12, etc) inches, and every 3 inches thereafter , Give a final report/total at the end of the storm, Thunder Snow - time and location. Any ice accumulation on trees, streets, or  power lines, accumulation of 1/4' or more. Sleet or freezing rain. Wind gusts in excess of 35 MPH and means of measurement. Impassable or closed roads, Downed Trees, large branches or power lines. Ant other storm damage. Time of event, Event, location - County and direction/distance from nearest  town."]
[]
["  "]
["Back"]
{"$rows_empty":13}
["Meghan Aleret"]
[]
["Information on a missing child.   Refer to your Email from INWS and copy the information in it to the NOTES tab at the bottom of this form."]
{"$rows_empty":7}
["ALL Drills"]
[]
["Be sure that any and all communications you have say \"This is a drill this is a drill\" then state what kind of drill (ex: Plane crash at the airport.)  Place the details in the NOTES tab at the bottom of this form."]

{"sheet":"Callups","index":6,"n_rows":16,"n_cols":5,"rows_kept":16,"merged":[[0,0,0,6],[1,1,1,6],[2,0,2,1],[2,4,2,5],[3,0,4,5],[5,0,6,6],[9,0,9,5],[10,0,10,5],[11,0,11,5],[12,0,12,5],[13,0,13,2]]}
["Calling the Washington and Greene County Skywarn Net Calling the Washington and Greene County Skywarn Net . This is"]
[{"$f":"FORM!B4","v":0},"net control. This is a directed net. This net has been activated by the National Weather Service for a"]
["Severe Weather Warning",null,"until",{"$f":"FORM!H3","v":"00:00:00"}]
["The National Weather Service Will be looking for:"]
[]
["reports of Hail, Wind Damage, Lightning, Flooding of creeks and streams or Rain in excess of 1 inch per hour."]
[]
[]
[]
["When checking into the net please give your Call sign phonetically and then give your name, location, availability."]
["If you are mobile, give your location and direction of travel. Please notify net control before leaving the net."]
["We will now take check-ins from any station with emergency or priority traffic -- we will now take check-ins from stations on portable or"]
["from stations on portable or emergency power -- we will now take check-ins from stations on Echolink -- we will"]
["will now take check-ins from any station please call",null,null,{"$f":"FORM!B4","v":0},"net control."]
[]
[{"$nulls":3},"Back to top"]

{"sheet":"Events","index":7,"n_rows":8,"n_cols":1,"rows_kept":8}
["10K"]
["15K"]
["20K"]
["5K"]
["Canoe Race"]
["Run for Alex"]
["Tri Athalon"]
["Washington Laborday Race"]

{"sheet":"Sheet4","index":8,"n_rows":0,"n_cols":0,"rows_kept":0,"hidden":true}

{"sheet":"Sheet6","index":9,"n_rows":0,"n_cols":0,"rows_kept":0,"hidden":true}

{"sheet":"Counties","index":10,"n_rows":35,"n_cols":1,"rows_kept":35}
["Allegheny"]
["Armstrong"]
["Beaver"]
["Butler"]
["Fayette"]
["Greene"]
["Indiana"]
["Washington"]
["Westmoreland"]
["Lawrence"]
["Mercer"]
["Venango"]
["Forest"]
["Clarion"]
["Jefferson Pa"]
["Columbiana"]
["Carroll"]
["Tuscarawas"]
["Coshocton"]
["Muskingum"]
["Guernsey"]
["Noble"]
["Monroe"]
["Belmont"]
["Harrison"]
["Jefferson Oh"]
["Hancock"]
["Brooke"]
["Ohio"]
["Marshall"]
["Wetzel"]
["Marion"]
["Monongalia"]
["Preston"]
["Tucker"]

{"sheet":"Instructions","index":11,"n_rows":430,"n_cols":7,"rows_kept":430,"merged":[[0,2,0,6],[1,0,1,6],[2,0,2,6],[5,2,5,6],[6,0,6,4],[7,1,7,6],[13,0,13,5],[16,0,16,6],[40,0,40,7],[41,0,41,1],[41,2,41,3],[41,5,41,6],[42,3,42,4],[43,0,43,1],[44,2,44,6],[45,0,45,6],[46,0,47,6],[48,0,48,1],[48,3,48,5],[49,0,49,1],[49,2,49,7],[50,0,50,6],[51,1,51,3],[52,0,52,5],[79,0,79,6],[81,0,81,6],[82,0,82,6],[83,0,83,6],[84,0,84,6],[85,0,85,6],[86,0,86,6],[87,0,87,6],[88,0,88,6],[89,0,89,6],[90,0,90,6],[91,0,91,6],[92,0,92,6],[93,0,93,6],[94,0,94,6],[118,0,118,6],[119,0,119,6],[120,0,120,6],[121,0,121,6],[134,0,135,5],[139,0,139,6],[142,0,142,6],[187,0,188,5],[240,0,240,5],[279,0,279,6],[280,0,280,6],[281,0,281,6],[282,0,282,6],[283,0,283,6],[284,0,284,6],[285,0,285,6],[286,0,286,6],[288,0,288,6],[355,0,358,6],[359,0,360,6],[361,0,361,6],[362,0,363,6],[364,0,365,6],[366,0,366,6],[367,0,367,6],[368,0,368,6],[369,0,369,6],[370,0,370,6],[371,0,371,6],[372,0,372,6],[373,0,373,6],[374,0,374,6],[399,0,399,6],[400,2,400,4],[400,5,400,6],[401,2,401,3],[402,0,402,6],[403,0,403,6],[404,0,404,6],[405,0,405,6],[406,0,406,6],[408,0,408,5],[409,0,409,5],[410,0,410,5],[411,0,411,2],[413,0,413,5],[419,0,419,6],[420,2,420,4],[420,5,420,6],[422,0,422,6],[423,0,423,6],[424,0,424,6],[425,0,425,6],[426,0,426,6],[428,0,428,5],[429,0,429,5],[449,0,449,6],[450,0,450,6],[451,0,451,6],[452,0,452,6],[453,0,453,6],[454,0,454,6],[455,0,455,6],[456,0,456,6],[457,0,457,5],[458,0,458,6],[459,0,459,6],[460,0,460,6],[461,0,461,6],[462,0,462,6]]}
["This is ",{"$f":"FORM!B4","v":0},"net control for the County Name County Skywarn/Emergency/Public Service"]
["net. Anyone wishing to check-in to the net please call net control."]
[]
[{"$nulls":3},"or"]
[]
["This is ",{"$f":"FORM!B4","v":0},"net control for the County Name County Skywarn/Emergency/Public Service"]
["Net. this is a directed net and has been called by the Nationak Weather Service for a",{"$nulls":4},{"$f":"FORM!D2","v":"Storm Warning"},"until"]
[{"$f":"FORM!H3","v":"00:00:00"},"local time. Anyone wishing to check-in to the net please call net control."]
{"$rows_empty":8}
["Back to top"]
{"$rows_empty":23}
["This has been the County Name County Skywarn/Public Service net. We will be closing the net at this time because the because"]
[{"$f":"FORM!D2","v":"Storm Warning"},null,"has expired as of ",null,{"$f":"FORM!H3","v":"00:00:00"},"local time "]
["There were",{"$f":"FORM!J3","v":0},"checkins","Total event time was",null,{"$f":"FORM!I3","v":{"v":0,"d":"0.00"}},"hours."]
["Total operator time was",null,{"$f":"FORM!I1","v":{"v":0,"d":"0.00"}},"hours","This is",{"$f":"FORM!B4","v":0},"Closing"]
["the net at ",{"$f":"NOW()","v":45263.594202546294},"local time and turning the frequency back to general amature use. Please continue"]
["to monitor this frequency incase we are called up again. We would like to thank all those who checked in and those who"]
["gave us a clear frequency to operate on. "]
[]
[]
["Be sure to email this sheet to: ",null,"brad_m1@verizon.net -  bud@n3tir.com - tom.pghmtb@gmail.com"]
[]
[]
["Back to top"]
{"$rows_empty":26}
["Summer criteria for Skywarn net reporting"]
[]
["Tornadoes. Funnel clouds, or rotating wall clouds"]
["Hail any size (please give the size as compared to US coins)"]
["Wind gusts in excess of 50 MPH and means of measurement."]
["Flooding of streams, creeks, or rivers out of their banks"]
["Roads or streets made impassable do to water"]
["An inch or more of rain accumulation in 1 hour measured in a rain gauge, Total for storm"]
["Any damage by wind or lightning"]
["Downed trees, large branches 4\" or better, or power lines"]
["Do not give fair weather reports. This net is for severe weather only."]
["Remember to always give the three most important parts of a report"]
["TIME - TIME OF OCCURRENCE"]
["EVENT - HAIL, TORNADO, FUNNEL CLOUD, ETC."]
["LOCATION - COUNTY AND DIRECTION/DISTANCE FROM NEAREST TOWN  "]
["Back to top     "]
{"$rows_empty":23}
["Winter criteria for Skywarn net reporting"]
["Snow accumulation in inches (When (new) snow accumulation reaches 2 inches Then at 4 inches, 6, 9, 12, etc) inches, "]
["and every 3 inches thereafter , Give a final report/total at the end of the storm, Thunder Snow - time and location."]
["Any ice accumulation on trees, streets. Or power lines, Accumulation of 1/4\" or more"]
["Sleet or freezing rain"]
["Wind gusts in excess of 35 MPH and means of measurement"]
["Impassable or closed roads"]
["Downed trees, large branches - 4\" or more, or power lines"]
["Any other storm related damage"]
[]
["Remember to always give the three most important parts of a report"]
["TIME - TIME OF OCCURRENCE"]
["EVENT - HAIL, TORNADO, FUNNEL CLOUD, ETC."]
["LOCATION - COUNTY AND DIRECTION/DISTANCE FROM NEAREST TOWN"]
[]
[]
["Back to top"]
{"$rows_empty":105}
["Back to top"]
{"$rows_empty":38}
["Net Activation to CONDITION RED "]
["When Net used: If a TORNADO WARNING has been issued for your county.  "]
["Control Station takes total control of frequency. Net Control requests tornado, funnel cloud and wall "]
["cloud reports. If there are no tornado reports, Net Control requests reports meeting the above criteria. "]
["Stations without one of the above reports should maintain radio silence. Net control will relay Tornado "]
["Warning information frequently.   Condition RED events are rare. However, real emergency organization "]
["in these instances is what will make the NWS, trained spotters and all licensed amateurs involved with "]
["ARES fulfill their missions and shine.  "]
[]
["Back to top "]
{"$rows_empty":66}
["Instructions"]
[]
[]
[]
["All times are in 24 hour format NOT Military Time You MUST use hh:mm not hhmm."]
[]
["Put date in the cell as mm/dd/yy then a space then the start and end time"]
["Save the file as soon as you have the top filled out and periodically while you are using it. Press Control + S"]
[]
["To save. Send this file to KB3IN, KA3PMW, KC3EDQ, and N3TIR when you are done."]
[]
["You MUST close the file first. Click on the Email selection to get the addresses then close the log and click on"]
["the attach in your email program. The file will be located in the folder where the sheet is and will have a"]
["filename of yyyy-mm-dd Emergency Log.xls where yyyy is the current year, mm is the current month, and dd"]
["is the current day. To add a spotter, click on the Spotters tab at the bottom of the form, scroll to toe bottom of"]
["that page and add the info in ALL CAPS. When you are done, click on Data at the top of the form and click on"]
["Sort. The list MUST be sorted to work properly."]
[]
[]
["Back to top"]
{"$rows_empty":24}
["Calling the Washington and Greene County Skywarn Net Calling the Washington and Greene County Skywarn "]
["Net . This is",{"$f":"FORM!B4","v":0},"net control. This is a directed net for the ",null,null,{"$f":"FORM!D2","v":"Storm Warning"}]
["issued until",{"$f":"FORM!H3","v":"00:00:00"},"local time."]
["When checking into the net please give your Call sign phonetically and then give your name, location, availability."]
["If you are mobile, give your location and direction of travel. Please notify net control before leaving the net."]
["We will now take check-ins from any station with emergency or priority traffic -- we will now take"]
["we will now take check-ins from stations on portable, mobile or emeregency power --"]
[" we will now take check-ins from stations on Echolink -- we will now take check-ins from any station please call"]
[{"$f":"FORM!B4","v":0},"net control."]
[]
["Back to top"]
{"$rows_empty":9}
["Calling the County Name County Skywarn Net Calling the County Name County Skywarn Net"]
["This is",{"$f":"FORM!B4","v":0},"net control. This is a directed net for the ",null,null,{"$f":"FORM!D2","v":"Storm Warning"}]
[]
["When checking into the net please give your Call sign phonetically and then give your name, location, availability."]
["If you are mobile, give your location and direction of travel. Please notify net control before leaving the net."]
["We will now take check-ins from any station with emergency or priority traffic -- we will now take"]
["we will now take check-ins from stations on portable, mobile or emeregency power --"]
[" we will now take check-ins from stations on Echolink -- we will now take check-ins from any station please call"]
[{"$f":"FORM!B4","v":0},"net control."]
[]
["Back to top"]

{"sheet":"Summary","index":12,"n_rows":153,"n_cols":6,"rows_kept":153,"merged":[[0,0,0,5],[3,4,3,7],[4,4,4,7],[5,4,5,7],[6,4,6,7],[7,4,7,7],[8,4,8,7],[9,4,9,7],[10,4,10,7],[11,4,11,7],[12,4,12,7],[13,4,13,7],[14,4,14,7],[15,4,15,7],[16,4,16,7],[17,4,17,7],[18,4,18,7],[19,4,19,7],[20,4,20,7],[21,4,21,7],[22,4,22,7]]}
["Washington & Greene County Log Summary  v2.0"]
[null,"Summary for: ","Event","Storm Warning","Total Checkins",0]
["NR","Call","Total Event Time",{"v":0,"d":"0.00"},"Total Operator Hours",{"v":0,"d":"0.00"}]
[1,null,"Date"]
[2]
[3]
[4]
[5]
[6]
[7]
[8]
[9]
[10]
[11]
[12]
[13]
[14]
[15]
[16]
[17]
[18]
[19]
[20]
[21]
[22]
[23]
[24]
[25]
[26]
[27]
[28]
[29]
[30]
[31]
[32]
[33]
[34]
[35]
[36]
[37]
[38]
[39]
[40]
[{"$f":"A43+1","v":41}]
[{"$f":"A44+1","v":42}]
[{"$f":"A45+1","v":43}]
[44]
[45]
[46]
[47]
[48]
[49]
[50]
[51]
[52]
[53]
[54]
[55]
[56]
[57]
[58]
[59]
[60]
[61]
[62]
[63]
[64]
[65]
[66]
[67]
[68]
[69]
[70]
[71]
[72]
[73]
[74]
[75]
[76]
[77]
[78]
[79]
[80]
[81]
[82]
[83]
[84]
[85]
[86]
[87]
[88]
[89]
[90]
[91]
[92]
[93]
[94]
[95]
[96]
[97]
[98]
[99]
[100]
[101]
[102]
[103]
[104]
[105]
[106]
[{"$f":"A109+1","v":107}]
[108]
[109]
[110]
[111]
[112]
[113]
[114]
[115]
[116]
[117]
[118]
[119]
[120]
[121]
[122]
[123]
[124]
[125]
[126]
[127]
[128]
[129]
[130]
[131]
[132]
[133]
[134]
[135]
[136]
[137]
[138]
[139]
[140]
[141]
[142]
[143]
[144]
[145]
[146]
[147]
[148]
[149]
[150]

{"sheet":"Sheet3","index":13,"n_rows":0,"n_cols":0,"rows_kept":0,"hidden":true}

{"sheet":"Sheet8","index":14,"n_rows":0,"n_cols":0,"rows_kept":0,"hidden":true}